fUSD/lending_fUSD_20260401
["ID","MTS","AMOUNT","RATE_DAILY","PERIOD"]
[419255899,1775059842092,-236.5085307,0.00015122,2]
[419255900,1775059842508,-150.0,0.00015142,2]
[419255901,1775059842545,-150.0,0.00015142,2]
[419255902,1775059842555,-150.0,0.00015142,2]
[419255903,1775059842564,-150.0,0.00015142,2]
[419255904,1775059842573,-150.573,0.00015142,2]
[419255905,1775059842582,-150.0,0.00015142,2]
[419255906,1775059842591,-150.25,0.00015142,2]
[419255907,1775059842600,-150.264,0.00015142,2]
[419255908,1775059842609,-150.0,0.00015142,2]
[419255909,1775059842618,-155.122,0.00015142,2]
[419255910,1775059842627,-193.433,0.00015142,2]
[419255911,1775059842637,-166.012,0.00015142,2]
[419255912,1775059842647,-214.791,0.00015142,2]
[419255913,1775059842657,-250.0,0.00015142,2]
[419255914,1775059842667,-180.0,0.00015142,2]
[419255915,1775059842678,-239.504,0.00015142,2]
[419255916,1775059842688,-3519.0,0.00015142,2]
[419255917,1775059842698,-626.633,0.00015142,2]
[419255918,1775059842707,-1045.0,0.00015142,2]
[419255919,1775059842717,-1263.0,0.00015142,2]
[419255920,1775059842732,-150.351,0.00015142,2]
[419255921,1775059842742,-1216.0,0.00015142,2]
[419255922,1775059842751,-933.398,0.00015142,2]
[419255923,1775059842761,-3767.0,0.00015142,2]
[419255924,1775059842771,-2469.0,0.00015142,2]
[419255925,1775059842781,-5107.02581206,0.00015142,2]
[419255926,1775059842796,-908.97418794,0.00015142,2]
[419255927,1775059842806,-411.94853609,0.00015157,2]
[419255928,1775059842816,-76.07727597,0.00015158,2]
[419255929,1775059842828,-203.56276448,0.00015158,2]
[419255930,1775059842837,-500.0,0.00015178,2]
[419255931,1775059842847,-500.0,0.00015178,2]
[419255932,1775059842858,-500.0,0.00015178,2]
[419255933,1775059842869,-500.0,0.00015178,2]
[419255934,1775059842879,-34.43723552,0.00015178,2]
[419255937,1775059842941,-465.56276448,0.00015178,2]
[419255939,1775059842951,-500.0,0.00015178,2]
[419255941,1775059842961,-500.0,0.00015178,2]
[419255943,1775059842970,-500.0,0.00015178,2]
[419255945,1775059842980,-500.0,0.00015178,2]
[419255946,1775059842989,-500.0,0.00015178,2]
[419255947,1775059842999,-359.62142584,0.00015178,2]
[419255948,1775059843008,-150.0,0.00015178,2]
[419255949,1775059843018,-500.0,0.00015178,2]
[419255950,1775059843028,-500.0,0.00015178,2]
[419255951,1775059843038,-500.0,0.00015178,2]
[419255952,1775059843048,-608.87103939,0.00015178,2]
[419255953,1775059843059,-150.0,0.00015178,2]
[419255954,1775059843069,-578.20924308,0.00015196,2]
[419255955,1775059843080,-200.0,0.00015196,2]
[419255956,1775059843090,-1377.42282659,0.00015196,2]
[419255957,1775059843100,-217.15233878,0.00015196,2]
[419255958,1775059843110,-500.0,0.00015196,2]
[419255959,1775059843120,-500.0,0.00015196,2]
[419255960,1775059843130,-500.0,0.00015196,2]
[419255961,1775059843141,-500.0,0.00015196,2]
[419255962,1775059843150,-500.0,0.00015196,2]
[419255963,1775059843160,-500.0,0.00015196,2]
[419255964,1775059843170,-500.0,0.00015196,2]
[419255965,1775059843180,-500.0,0.00015196,2]
[419255966,1775059843190,-166.33736638,0.00015196,2]
[419255968,1775059843200,-500.0,0.00015196,2]
[419255970,1775059843209,-500.0,0.00015196,2]
[419255972,1775059843219,-500.0,0.00015196,2]
[419255974,1775059843229,-500.0,0.00015196,2]
[419255975,1775059843239,-500.0,0.00015196,2]
[419255976,1775059843248,-500.0,0.00015196,2]
[419255977,1775059843258,-500.0,0.00015196,2]
[419255978,1775059843267,-500.0,0.00015196,2]
[419255979,1775059843277,-500.0,0.00015196,2]
[419255980,1775059843286,-294.71815899,0.00015196,2]
[419255981,1775059843299,-205.28184101,0.00015196,2]
[419255982,1775059843310,-500.0,0.00015196,2]
[419255983,1775059843320,-500.0,0.00015196,2]
[419255984,1775059843329,-500.0,0.00015196,2]
[419255985,1775059843339,-500.0,0.00015196,2]
[419255986,1775059843349,-500.0,0.00015196,2]
[419255987,1775059843358,-500.0,0.00015196,2]
[419255988,1775059843368,-500.0,0.00015196,2]
[419255989,1775059843377,-174.61919141,0.00015196,2]
[419255990,1775059843387,-200.0,0.00015196,2]
[419255991,1775059843396,-250.0,0.00015196,2]
[419255992,1775059843405,-250.0,0.00015196,2]
[419255993,1775059843415,-250.0,0.00015196,2]
[419255994,1775059843425,-250.0,0.00015196,2]
[419255995,1775059843434,-151.0,0.00015196,2]
[419255996,1775059843443,-250.0,0.00015196,2]
[419255997,1775059843453,-250.0,0.00015196,2]
[419255998,1775059843462,-250.0,0.00015196,2]
[419255999,1775059843472,-250.0,0.00015196,2]
[419256000,1775059843481,-250.0,0.00015196,2]
[419256001,1775059843491,-250.0,0.00015196,2]
[419256002,1775059843501,-250.0,0.00015196,2]
[419256003,1775059843510,-250.0,0.00015196,2]
[419256004,1775059843520,-296.57605829,0.00015196,2]
[419256005,1775059843529,-743.50770149,0.00015196,2]
[419256006,1775059843539,-262.90206542,0.00015196,2]
[419256007,1775059843548,-500.0,0.00015196,2]
[419256008,1775059843560,-500.0,0.00015196,2]
[419256009,1775059843570,-500.0,0.00015196,2]
[419256010,1775059843585,-500.0,0.00015196,2]
[419256011,1775059843595,-500.0,0.00015196,2]
[419256012,1775059843605,-224.0,0.00015197,2]
[419256013,1775059843615,-225.325772,0.00015197,7]
[419256014,1775059843625,-174.798175,0.00015197,7]
[419256015,1775059843635,-315.4793,0.000152,17]
[419256016,1775059843646,-224.0,0.00015228,2]
[419256017,1775059843656,-168.0,0.00015229,2]
[419256018,1775059843667,-168.0,0.00015229,2]
[419256019,1775059843677,-224.0,0.0001523,2]
[419256020,1775059843687,-500.0,0.00015251,2]
[419256021,1775059843697,-151.0,0.00015251,2]
[419256022,1775059843707,-272.62944185,0.00015251,2]
[419256023,1775059843718,-161.58,0.00015285,2]
[419256024,1775059843729,-500.0,0.00015306,2]
[419256025,1775059843739,-151.0,0.00015306,2]
[419256026,1775059843750,-282.71673119,0.00015306,2]
[419256027,1775059843760,-171.02198441,0.0001534,2]
[419256028,1775059843770,-500.0,0.0001534,2]
[419256029,1775059843780,-500.0,0.0001534,2]
[419256030,1775059843791,-500.0,0.0001534,2]
[419256031,1775059843801,-447.63534067,0.0001534,2]
[419256032,1775059843814,-500.0,0.0001534,2]
[419256033,1775059843823,-500.0,0.0001534,2]
[419256035,1775059843834,-500.0,0.0001534,2]
[419256036,1775059843844,-163.08145028,0.0001534,2]
[419256037,1775059843855,-340.82677405,0.0001534,2]
[419256038,1775059843866,-510.0,0.00015341,3]
[419256039,1775059843876,-218.365559,0.00015348,7]
[419256040,1775059843886,-169.398738,0.00015348,7]
[419256041,1775059843895,-168.0,0.0001536,2]
[419256042,1775059843905,-500.0,0.00015361,2]
[419256043,1775059843916,-151.0,0.00015361,2]
[419256044,1775059843926,-293.17725025,0.00015361,2]
[419256045,1775059843936,-224.0,0.00015368,2]
[419256046,1775059843947,-7911.68653658,0.00015372,2]
[419256047,1775059843958,-168.0,0.00015394,2]
[419256048,1775059843968,-350.0,0.00015416,2]
[419256049,1775059843979,-500.0,0.00015416,2]
[419256050,1775059843990,-151.0,0.00015416,2]
[419256051,1775059843999,-304.02480851,0.00015416,2]
[419256052,1775059844009,-500.0,0.00015437,2]
[419256053,1775059844018,-224.0,0.0001544,2]
[419256054,1775059844028,-500.0,0.00015471,2]
[419256055,1775059844039,-151.0,0.00015471,2]
[419256056,1775059844049,-315.27372642,0.00015471,2]
[419256057,1775059844059,-2118.95618001,0.00015471,2]
[419256058,1775059844072,-2648.22381999,0.00015471,2]
[419256059,1775059844082,-338.97618001,0.00015507,2]
[419256060,1775059844095,-2095.592,0.00015507,2]
[419256061,1775059844107,-1565.43181999,0.00015507,2]
[419256062,1775059844117,-38.31787921,0.00015509,2]
[419256063,1775059844144,-185.68212079,0.00015509,2]
[419256064,1775059844153,-224.0,0.00015524,2]
[419256065,1775059844163,-500.0,0.00015526,2]
[419256066,1775059844173,-151.0,0.00015526,2]
[419256067,1775059844182,-326.9388543,0.00015526,2]
[419256068,1775059844192,-460.0,0.00015565,2]
[419256069,1775059844202,-404.56547423,0.00015567,2]
[419256070,1775059844211,-500.0,0.00015581,2]
[419256071,1775059844221,-151.0,0.00015581,2]
[419256072,1775059844230,-339.03559191,0.00015581,2]
[419256073,1775059844240,-350.0,0.0001559,2]
[419256074,1775059844250,-2000.0,0.000156,2]
[419256075,1775059844260,-500.0,0.00015636,2]
[419256076,1775059844270,-151.0,0.00015636,2]
[419256077,1775059844279,-3457.675,0.00015656,2]
[419256078,1775059844288,-187.136,0.00015656,2]
[419256079,1775059844299,-1079.3194623,0.0001566,5]
[419256080,1775059844309,-1134.04220954,0.00015661,2]
[419256081,1775059844319,-1088.14338546,0.00015661,2]
[419256082,1775059844329,-1103.30612703,0.00015661,2]
[419256083,1775059844340,-1028.62972861,0.00015661,2]
[419256084,1775059844350,-1010.5088885,0.00015661,2]
[419256085,1775059844360,-1121.13273159,0.00015661,2]
[419256086,1775059844370,-1122.839747,0.00015661,2]
[419256087,1775059844380,-1114.84201574,0.00015661,2]
[419256088,1775059844390,-1149.87412734,0.00015661,2]
[419256089,1775059844400,-1144.29060526,0.00015661,2]
[419256090,1775059844410,-1144.717238,0.00015661,2]
[419256091,1775059844420,-1135.5405784,0.00015661,2]
[419256092,1775059844430,-1045.16822888,0.00015661,2]
[419256093,1775059844440,-1037.57694449,0.00015661,2]
[419256094,1775059844449,-1077.6847037,0.00015661,2]
[419256095,1775059844459,-1068.63876542,0.00015661,2]
[419256096,1775059844469,-1060.01111868,0.00015661,2]
[419256097,1775059844479,-1087.97853719,0.00015661,2]
[419256098,1775059844489,-1022.1076398,0.00015661,2]
[419256099,1775059844499,-1012.92787993,0.00015661,2]
[419256100,1775059844509,-1071.55893492,0.00015661,2]
[419256101,1775059844519,-1109.62583101,0.00015661,2]
[419256102,1775059844528,-1457.83483207,0.00015661,2]
[419256103,1775059844537,-4653.1,0.00015684,2]
[419256104,1775059844547,-500.0,0.00015691,2]
[419256105,1775059844557,-151.0,0.00015691,2]
[419256106,1775059844566,-224.0,0.00015691,2]
[419256107,1775059844577,-1300.27898027,0.000157,2]
[419256108,1775059844586,-460.0,0.00015707,2]
[419256109,1775059844596,-689.49664275,0.0001574,2]
[419256110,1775059844606,-200.0,0.00015744,2]
[419256111,1775059844616,-1492.65948636,0.00015744,2]
[419256112,1775059844625,-181.08010149,0.00015744,2]
[419256113,1775059844635,-200.0,0.00015744,2]
[419256114,1775059844644,-771.01748645,0.00015744,2]
[419256115,1775059844654,-161.58,0.00015744,2]
[419256116,1775059844663,-500.0,0.00015746,2]
[419256117,1775059844673,-151.0,0.00015746,2]
[419256118,1775059844682,-306.259251,0.00015753,2]
[419256119,1775059844692,-689.49664266,0.00015758,2]
[419256120,1775059844701,-689.49664266,0.00015776,2]
[419256121,1775059844711,-689.49664266,0.00015793,2]
[419256122,1775059844721,-237.6216955,0.00015795,2]
[419256123,1775059844730,-2000.0,0.000158,2]
[419256124,1775059844740,-500.0,0.00015801,2]
[419256125,1775059844750,-151.0,0.00015801,2]
[419256126,1775059844759,-689.49664266,0.00015811,2]
[419256127,1775059844769,-689.49664266,0.00015829,2]
[419256128,1775059844779,-500.0,0.00015836,2]
[419256129,1775059844788,-460.0,0.00015846,2]
[419256130,1775059844798,-689.49664266,0.00015847,2]
[419256131,1775059844808,-500.0,0.00015863,2]
[419256132,1775059844818,-689.49664266,0.00015864,2]
[419256133,1775059844827,-500.0,0.00015871,2]
[419256134,1775059844839,-500.0,0.00015872,2]
[419256135,1775059844849,-500.0,0.00015872,2]
[419256136,1775059844858,-500.0,0.00015872,2]
[419256137,1775059844868,-257.58291907,0.00015878,2]
[419256138,1775059844878,-1192.8524474,0.00015881,2]
[419256139,1775059844888,-5000.0,0.00015881,2]
[419256140,1775059844900,-689.49664266,0.00015882,2]
[419256141,1775059844910,-4000.0,0.00015895,2]
[419256142,1775059844920,-404.56547423,0.000159,2]
[419256143,1775059844930,-689.49664266,0.000159,2]
[419256144,1775059844940,-5200.17238052,0.000159,2]
[419256145,1775059844950,-515.34886064,0.000159,2]
[419256146,1775059844960,-453.0,0.000159,2]
[419256147,1775059844969,-212.9347797,0.000159,2]
[419256148,1775059844979,-366.0,0.000159,5]
[419256149,1775059844989,-1133.59,0.000159,2]
[419256150,1775059844999,-712.0,0.00015929,2]
[419256151,1775059845009,-712.0,0.00015946,2]
[419256152,1775059845019,-712.0,0.00015952,2]
[419256153,1775059845029,-1000.0,0.0001597,2]
[419256154,1775059845038,-1000.0,0.0001597,2]
[419256155,1775059845048,-1000.0,0.0001597,2]
[419256156,1775059845058,-1000.0,0.0001597,2]
[419256157,1775059845068,-1000.0,0.0001597,2]
[419256158,1775059845078,-500.0,0.0001597,2]
[419256159,1775059845087,-1188.51483974,0.0001597,2]
[419256160,1775059845097,-500.0,0.0001597,2]
[419256161,1775059845106,-500.0,0.0001597,2]
[419256162,1775059845116,-500.0,0.0001597,2]
[419256163,1775059845125,-500.0,0.0001597,2]
[419256164,1775059845135,-762.87386502,0.0001597,2]
[419256165,1775059845145,-500.0,0.00015973,2]
[419256166,1775059845154,-157854.2712893,0.00015978,2]
[419256167,1775059845164,-2801.5109555,0.00015978,2]
[419256168,1775059845174,-14315.5771695,0.00015978,2]
[419256169,1775059845185,-1097.9969599,0.00015978,2]
[419256170,1775059845194,-172329.0878375,0.00015978,2]
[419256171,1775059845204,-177.0167501,0.00015978,2]
[419256172,1775059845213,-84173.38082,0.00015978,2]
[419256173,1775059845224,-718.3323315,0.00015978,2]
[419256174,1775059845234,-14741.4170466,0.00015978,2]
[419256175,1775059845245,-3160.6035291,0.00015978,2]
[419256176,1775059845254,-151.0,0.00015978,2]
[419256177,1775059845263,-1000.0,0.00015981,2]
[419256178,1775059845273,-1000.0,0.00015981,2]
[419256179,1775059845283,-881.28293299,0.00015981,2]
[419256180,1775059845292,-288.05924458,0.00015981,2]
[419256181,1775059845303,-200.0,0.00015981,2]
[419256182,1775059845315,-200.0,0.00015981,2]
[419256183,1775059845324,-151.0,0.00015981,2]
[419256184,1775059845334,-200.0,0.00015981,2]
[419256185,1775059845344,-200.0,0.00015981,2]
[419256186,1775059845354,-217.03281836,0.00015984,2]
[419256187,1775059845364,-199.01001335,0.00015984,2]
[419256188,1775059845375,-157.09812523,0.00015984,2]
[419256189,1775059845384,-177.59453032,0.00015984,2]
[419256190,1775059845394,-341.89754571,0.00015984,2]
[419256191,1775059845404,-242.66651534,0.00015984,2]
[419256192,1775059845415,-155.13371865,0.00015984,2]
[419256193,1775059845425,-169.45999638,0.00015984,2]
[419256194,1775059845435,-152.0,0.00015995,2]
[419256195,1775059845444,-161.0,0.00015995,2]
[419256196,1775059845455,-156.0,0.00015995,2]
[419256197,1775059845465,-1524.0,0.00015995,2]
[419256198,1775059845475,-152.0,0.00015995,2]
[419256199,1775059845484,-161.0,0.00015995,2]
[419256200,1775059845494,-195.14340356,0.00015995,2]
[419256201,1775059845503,-1524.0,0.00015995,2]
[419256202,1775059845513,-205.95837428,0.00015995,2]
[419256203,1775059845523,-152.0,0.00015995,2]
[419256204,1775059845532,-1524.0,0.00015995,2]
[419256205,1775059845542,-1524.0,0.00015995,2]
[419256206,1775059845552,-152.0,0.00015995,2]
[419256207,1775059845564,-1524.0,0.00015995,2]
[419256208,1775059845574,-152.0,0.00015995,2]
[419256209,1775059845583,-1524.0,0.00015995,2]
[419256210,1775059845592,-1524.0,0.00015995,2]
[419256211,1775059845602,-152.0,0.00015995,2]
[419256212,1775059845611,-152.0,0.00015995,2]
[419256213,1775059845621,-1524.0,0.00015995,2]
[419256214,1775059845631,-152.0,0.00015995,2]
[419256215,1775059845640,-1524.0,0.00015995,2]
[419256216,1775059845650,-152.0,0.00015995,2]
[419256217,1775059845659,-1524.0,0.00015995,2]
[419256218,1775059845669,-153.0,0.00015995,2]
[419256219,1775059845678,-152.0,0.00015995,2]
[419256220,1775059845687,-153.0,0.00015995,2]
[419256221,1775059845696,-1524.0,0.00015995,2]
[419256222,1775059845706,-152.0,0.00015995,2]
[419256223,1775059845715,-153.0,0.00015995,2]
[419256224,1775059845725,-1524.0,0.00015995,2]
[419256225,1775059845734,-152.0,0.00015995,2]
[419256226,1775059845743,-153.0,0.00015995,2]
[419256227,1775059845753,-1524.0,0.00015995,2]
[419256228,1775059845763,-152.0,0.00015995,2]
[419256229,1775059845773,-153.0,0.00015995,2]
[419256230,1775059845782,-1524.0,0.00015995,2]
[419256231,1775059845791,-222.00689511,0.00015995,2]
[419256232,1775059845800,-153.0,0.00015995,2]
[419256233,1775059845811,-153.0,0.00015995,2]
[419256234,1775059845820,-153.0,0.00015995,2]
[419256235,1775059845829,-1524.0,0.00015995,2]
[419256236,1775059845839,-239.76961198,0.00015995,2]
[419256237,1775059845848,-1524.0,0.00015995,2]
[419256238,1775059845858,-1524.0,0.00015995,2]
[419256239,1775059845868,-1524.0,0.00015995,2]
[419256240,1775059845878,-1524.0,0.00015995,2]
[419256241,1775059845887,-1524.0,0.00015995,2]
[419256242,1775059845897,-150.01618887,0.00015996,2]
[419256243,1775059845907,-1068.37,0.00015997,2]
[419256244,1775059845916,-1068.37,0.00015997,2]
[419256245,1775059845926,-1068.37,0.00015997,2]
[419256246,1775059845935,-1068.37,0.00015997,2]
[419256247,1775059845945,-1068.37,0.00015997,2]
[419256248,1775059845955,-1068.37,0.00015997,2]
[419256249,1775059845964,-151.0,0.00015997,2]
[419256250,1775059845974,-355.3905852,0.00015998,2]
[419256251,1775059845983,-672.00857251,0.00015999,2]
[419256252,1775059845993,-155.384,0.00015999,2]
[419256253,1775059846002,-1068.37,0.00015999,2]
[419256254,1775059846012,-1068.37,0.00015999,2]
[419256255,1775059846022,-1068.37,0.00015999,2]
[419256256,1775059846032,-1068.37,0.00015999,2]
[419256257,1775059846042,-1068.37,0.00015999,2]
[419256258,1775059846052,-1068.37,0.00015999,2]
[419256259,1775059846062,-1068.37,0.00015999,2]
[419256260,1775059846072,-1068.37,0.00015999,2]
[419256261,1775059846082,-1068.37,0.00015999,2]
[419256262,1775059846092,-1068.37,0.00015999,2]
[419256263,1775059846101,-1068.50748779,0.00015999,2]
[419256264,1775059846111,-150.39535805,0.00015999,2]
[419256265,1775059846120,-100923.07604565,0.00016,2]
[419256266,1775059846149,-774.6985844,0.00016,2]
[419256286,1775059846860,-377.39598542,0.0001571,2]
[419256330,1775059847289,-1180.09,0.0001571,2]
[419256334,1775059847314,-1959.29828611,0.0001571,2]
[419256344,1775059847403,-633.9491007,0.0001571,2]
[419256396,1775060209455,-150.0,0.0001191,2]
[419256397,1775060209478,-600.0,0.0001191,2]
[419256398,1775060209504,-20390.0,0.00011911,2]
[419256399,1775060318314,-3159.68,0.00011507,2]
[419256400,1775060318342,-38111.415,0.00011911,2]
[419256401,1775060318366,-600.0,0.00012825,2]
[419256402,1775060318389,-600.0,0.00012825,2]
[419256403,1775060318414,-600.0,0.00012825,2]
[419256404,1775060318437,-600.0,0.00013101,2]
[419256405,1775060318467,-600.0,0.00013101,2]
[419256406,1775060318490,-510.0,0.00013111,2]
[419256407,1775060318513,-707.43465828,0.00013499,2]
[419256408,1775060318535,-200.0,0.00013505,2]
[419256409,1775060318556,-334.56830939,0.00013573,2]
[419256410,1775060318577,-201.11775543,0.00013573,2]
[419256411,1775060318602,-151.0,0.0001359,2]
[419256412,1775060318626,-151.0,0.0001359,2]
[419256413,1775060318650,-151.0,0.0001359,2]
[419256414,1775060318672,-151.0,0.0001359,2]
[419256415,1775060318695,-151.0,0.0001359,2]
[419256416,1775060318718,-151.0,0.0001359,2]
[419256417,1775060318742,-244.82496545,0.0001359,2]
[419256418,1775060318768,-151.0,0.00013596,2]
[419256419,1775060318791,-500.0,0.00013598,2]
[419256420,1775060318815,-500.0,0.00013598,2]
[419256421,1775060318838,-513.34473847,0.00013598,2]
[419256422,1775060318860,-500.0,0.00013598,2]
[419256423,1775060318883,-288.57874184,0.00013598,2]
[419256424,1775060318905,-500.0,0.00013598,2]
[419256425,1775060318927,-152.61788481,0.00013598,2]
[419256426,1775060318955,-500.0,0.00013598,2]
[419256427,1775060318981,-500.0,0.00013598,2]
[419256428,1775060319007,-500.0,0.00013598,2]
[419256429,1775060319033,-500.0,0.00013598,2]
[419256430,1775060319059,-500.0,0.00013598,2]
[419256431,1775060319084,-500.0,0.00013598,2]
[419256432,1775060319114,-500.0,0.00013598,2]
[419256433,1775060319140,-500.0,0.00013598,2]
[419256434,1775060319166,-500.0,0.00013598,2]
[419256435,1775060319192,-556.58693059,0.00013598,2]
[419256436,1775060319218,-500.0,0.00013598,2]
[419256437,1775060319246,-500.0,0.00013598,2]
[419256438,1775060319273,-500.0,0.00013598,2]
[419256439,1775060319300,-500.0,0.00013598,2]
[419256440,1775060319328,-500.0,0.00013598,2]
[419256441,1775060319355,-500.0,0.00013598,2]
[419256442,1775060319383,-500.0,0.00013598,2]
[419256443,1775060319410,-500.0,0.00013598,2]
[419256444,1775060319436,-556.11860616,0.00013598,2]
[419256445,1775060319463,-374906.71240958,0.00013599,2]
[419256448,1775060338521,152.74,7.288e-05,2]
[419256449,1775060338720,152.74,7.743e-05,2]
[419256450,1775060338941,152.74,8.199e-05,2]
[419256451,1775060369655,-152.74,8.654e-05,2]
[419256452,1775060369679,-152.74,9.11e-05,2]
[419256453,1775060369704,-152.74,9.565e-05,2]
[419256454,1775060369728,-152.74,0.00010021,2]
[419256455,1775060369757,-152.74,0.00010476,2]
[419256456,1775060369781,-152.74,0.00010931,2]
[419256457,1775060369806,-152.74,0.00011387,2]
[419256458,1775060369830,-152.74,0.00011842,2]
[419256459,1775060369852,-152.74,0.00012298,2]
[419256460,1775060369876,-152.74,0.00012753,2]
[419256461,1775060369899,-152.74,0.00013209,2]
[419256462,1775060369925,-49819.86,0.00013599,2]
[419256476,1775060433861,-457.99,0.00012307,2]
[419256477,1775060433883,-250.0,0.00012777,2]
[419256478,1775060433905,-600.0,0.00013069,2]
[419256479,1775060433927,-510.0,0.00013111,2]
[419256480,1775060433950,-2101.1332166,0.0001336,2]
[419256481,1775060433972,-600.0,0.000134,2]
[419256482,1775060433994,-600.0,0.000134,2]
[419256483,1775060434016,-600.0,0.000134,2]
[419256484,1775060434038,-1000.0,0.00013598,2]
[419256485,1775060434059,-300.0,0.00013598,2]
[419256486,1775060434083,-40310.61819042,0.00013599,2]
[419256487,1775060434104,-152.74,0.00013664,2]
[419256488,1775060434129,-707.43465823,0.00013766,2]
[419256489,1775060434151,-403.39,0.00013907,2]
[419256490,1775060434172,-150.0,0.00014,2]
[419256491,1775060434194,-707.43465823,0.00014033,2]
[419256492,1775060434215,-300.0,0.00014055,2]
[419256493,1775060434236,-300.0,0.00014055,2]
[419256494,1775060434258,-300.0,0.00014055,2]
[419256495,1775060434278,-300.0,0.00014055,2]
[419256496,1775060434301,-346.69381477,0.00014055,2]
[419256498,1775060434323,-2500.0,0.00014055,2]
[419256500,1775060434782,-2500.0,0.00014055,2]
[419256501,1775060434808,-2500.0,0.00014055,2]
[419256502,1775060434830,-2500.0,0.00014055,2]
[419256503,1775060434853,-2500.0,0.00014055,2]
[419256504,1775060434875,-600.0,0.00014055,2]
[419256506,1775060434896,-4103.0966064,0.00014055,2]
[419256507,1775060434918,-500.0,0.00014055,2]
[419256508,1775060434940,-500.0,0.00014055,2]
[419256509,1775060434961,-500.0,0.00014055,2]
[419256510,1775060434985,-500.0,0.00014055,2]
[419256511,1775060435006,-500.0,0.00014055,2]
[419256512,1775060435029,-168.9529332,0.00014055,2]
[419256513,1775060435051,-200.0,0.00014055,2]
[419256514,1775060435072,-200.0,0.00014055,2]
[419256515,1775060435095,-200.0,0.00014055,2]
[419256516,1775060435117,-200.0,0.00014055,2]
[419256518,1775060435138,-239.40504995,0.00014055,2]
[419256519,1775060435160,-152.74,0.0001412,2]
[419256520,1775060435184,-707.43465823,0.00014299,2]
[419256521,1775060435208,-2000.0,0.00014473,2]
[419256522,1775060435230,-160.0,0.00014483,2]
[419256523,1775060435252,-707.43465823,0.00014566,2]
[419256524,1775060435281,-1272.91,0.00014574,2]
[419256525,1775060435305,-152.74,0.00014575,2]
[419256526,1775060435327,-500.0,0.00014658,2]
[419256527,1775060435350,-707.43465823,0.00014833,2]
[419256528,1775060435376,-2101.1332166,0.00014851,2]
[419256529,1775060435401,-420.0,0.00014903,2]
[419256530,1775060435424,-3240.0,0.00014956,2]
[419256531,1775060435445,-160.0,0.00015,2]
[419256532,1775060439161,665.0,0.00014174,2]
[419256540,1775060444568,36144.28368091,0.00011811,2]
[419256577,1775060795961,-296.48,0.00011456,2]
[419256578,1775060795984,-160.81623528,0.0001171,2]
[419256579,1775060796007,-331.10909006,0.00011809,2]
[419256580,1775060796030,-150.0,0.00011809,2]
[419256581,1775060796055,-500.0,0.0001181,2]
[419256582,1775060796079,-500.0,0.0001181,2]
[419256583,1775060796107,-500.0,0.0001181,2]
[419256584,1775060796130,-209.34131693,0.0001181,2]
[419256585,1775060796153,-402.00511929,0.0001181,2]
[419256586,1775060796181,-500.0,0.0001181,2]
[419256587,1775060796207,-500.0,0.0001181,2]
[419256588,1775060796235,-500.0,0.0001181,2]
[419256589,1775060796261,-390.24823844,0.0001181,2]
[419256593,1775061033103,-653.50259332,0.000105,5]
[419256594,1775061033228,-829.38668649,0.000105,5]
[419256595,1775061033293,-3457.11072019,0.000105,5]
[419256596,1775061033303,-150.0,0.000105,2]
[419256597,1775061033312,-250.0,0.00010827,2]
[419256598,1775061033322,-417.19427039,0.00011155,2]
[419256599,1775061033332,-600.0,0.00011364,2]